fUST/lending_fUST_20250522
["ID","MTS","AMOUNT","RATE_DAILY","PERIOD"]
[361871835,1747859379114,5000.0,0.00021645,2]
[361871836,1747859379157,430.0,0.0002231,2]
[361871837,1747859379278,-430.0,0.00023132,2]
[361871838,1747859379300,-430.0,0.00023132,2]
[361871839,1747859379321,-341.99279265,0.00023132,2]
[361871840,1747859379342,-430.0,0.00023132,2]
[361871841,1747859379364,-213.49625718,0.00023132,2]
[361871842,1747859379386,-430.0,0.00023132,2]
[361871843,1747859379407,-430.0,0.00023132,2]
[361871844,1747859379429,-430.0,0.00023132,2]
[361871845,1747859379451,-430.0,0.00023132,2]
[361871846,1747859379472,-430.0,0.00023132,2]
[361871847,1747859379496,-430.0,0.00023132,2]
[361871848,1747859379519,-360.0,0.00023132,2]
[361871849,1747859379540,-151.996897,0.00023132,7]
[361871850,1747859379561,-430.0,0.00023132,2]
[361871851,1747859379583,-151.0,0.00023132,7]
[361871852,1747859379604,-430.0,0.00023132,2]
[361871853,1747859379630,-430.0,0.00023132,2]
[361871854,1747859379653,-430.0,0.00023132,2]
[361871855,1747859379674,-430.0,0.00023132,2]
[361871856,1747859379784,-430.0,0.00023132,2]
[361871857,1747859379808,-430.0,0.00023133,2]
[361871858,1747859379831,-430.0,0.00023133,2]
[361871859,1747859379853,-430.0,0.00023133,2]
[361871860,1747859379876,-387.99,0.00023133,2]
[361871861,1747859379898,-430.0,0.00023133,2]
[361871862,1747859379922,-430.0,0.00023133,2]
[361871863,1747859379945,-430.0,0.00023133,2]
[361871864,1747859379968,-430.0,0.00023133,2]
[361871865,1747859379989,-400.0,0.00023133,2]
[361871866,1747859380012,-430.0,0.00023133,2]
[361871867,1747859380035,-430.0,0.00023133,2]
[361871868,1747859380059,-473.4,0.00023133,2]
[361871869,1747859380080,-430.0,0.00023133,2]
[361871870,1747859380100,-430.0,0.00023133,2]
[361871871,1747859380122,-915.25,0.00023133,2]
[361871872,1747859380144,-430.0,0.00023133,2]
[361871873,1747859380166,-430.0,0.00023135,2]
[361871874,1747859380187,-534.95,0.00023135,2]
[361871875,1747859380208,-430.0,0.00023135,2]
[361871876,1747859380229,-227.14,0.00023135,2]
[361871877,1747859380250,-185.8,0.00023135,2]
[361871878,1747859380272,-430.0,0.00023135,2]
[361871879,1747859380293,-430.0,0.00023135,2]
[361871880,1747859380315,-430.0,0.00023135,2]
[361871881,1747859380335,-304.25123012,0.00023135,2]
[361871882,1747859380357,-487.48,0.00023135,2]
[361871883,1747859380377,-430.0,0.00023135,2]
[361871884,1747859380399,-430.0,0.00023135,2]
[361871885,1747859380421,-430.0,0.00023135,2]
[361871886,1747859380442,-184.76,0.00023135,2]
[361871887,1747859380462,-430.0,0.00023135,2]
[361871888,1747859380487,-573.68,0.00023135,2]
[361871889,1747859380510,-235.14,0.00023135,2]
[361871890,1747859380536,-2102.7778143,0.00023141,8]
[361871891,1747859380556,-200.51462812,0.00023179,2]
[361871892,1747859380577,-500.0,0.0002321,2]
[361871893,1747859380598,-500.0,0.0002321,2]
[361871894,1747859380617,-500.0,0.00023236,2]
[361871895,1747859380644,430.0,0.00023103,2]
[361871896,1747859380688,232.11479786,0.00022211,2]
[361871897,1747859380714,430.0,0.0002231,2]
[361871898,1747859380744,328.13,0.00022584,2]
[361871899,1747859380772,431.80831513,0.0002231,2]
[361871900,1747859380808,297.03404986,0.0002231,2]
[361871901,1747859380832,430.0,0.00021917,2]
[361871902,1747859380861,430.0,0.00022191,2]
[361871903,1747859380888,440.0,0.00022465,2]
[361871904,1747859380931,403.786189,0.00023103,7]
[361871905,1747859381008,460.9,0.0002231,2]
[361871906,1747859381035,403.786189,0.00023103,7]
[361871907,1747859381288,338.81,0.0002231,2]
[361871908,1747859381499,430.0,0.00022311,2]
[361871909,1747859381650,151.0,0.00023049,7]
[361871910,1747859381861,438.65391206,0.00022313,2]
[361871911,1747859382079,430.0,0.0002231,2]
[361871912,1747859382350,430.0,0.00022584,2]
[361871913,1747859382575,430.0,0.00022858,2]
[361871914,1747859382859,430.0,0.00023132,2]
[361871915,1747859382906,430.0,0.0002231,2]
[361871916,1747859384116,503.56931981,0.00022311,2]
[361871917,1747859385831,430.0,0.00022311,2]
[361871918,1747859386117,430.0,0.00022585,2]
[361871919,1747859386287,430.0,0.0002231,2]
[361871920,1747859387293,430.0,0.00021917,2]
[361871921,1747859387524,430.0,0.00022191,2]
[361871922,1747859387766,430.0,0.00022465,2]
[361871923,1747859388023,430.0,0.00022739,2]
[361871924,1747859388086,430.0,0.0002231,2]
[361871925,1747859388267,430.0,0.00023013,2]
[361871926,1747859388292,430.0,0.00022311,2]
[361871927,1747859388353,430.0,0.00022313,2]
[361871928,1747859388526,430.0,0.00022585,2]
[361871929,1747859388627,430.0,0.00022587,2]
[361871930,1747859390138,500.0,0.00021917,2]
[361871931,1747859390421,500.0,0.00022278,2]
[361871932,1747859390682,500.0,0.00022308,2]
[361871933,1747859390939,400.80650554,0.00021917,2]
[361871934,1747859390965,500.0,0.00022309,2]
[361871935,1747859391349,500.0,0.0002231,2]
[361871936,1747859391422,500.0,0.0002231,2]
[361871937,1747859391688,500.0,0.0002231,2]
[361871938,1747859391952,500.0,0.00022312,2]
[361871939,1747859392192,500.0,0.00022312,2]
[361871940,1747859392437,500.0,0.00022583,2]
[361871941,1747859392647,430.0,0.0002231,2]
[361871942,1747859392674,430.0,0.00022311,2]
[361871943,1747859392768,500.0,0.00022584,2]
[361871944,1747859392911,430.0,0.00022585,2]
[361871945,1747859393155,557.2,0.00022584,2]
[361871946,1747859394690,582.44817082,0.00023019,2]
[361871947,1747859395573,430.0,0.0002231,2]
[361871948,1747859395829,430.0,0.00021917,2]
[361871949,1747859396070,430.0,0.00022191,2]
[361871950,1747859396245,160.0,0.0002231,2]
[361871951,1747859396325,430.0,0.00022465,2]
[361871952,1747859396580,430.0,0.00022739,2]
[361871953,1747859396815,430.0,0.00023013,2]
[361871954,1747859396947,433.62812338,0.00022313,2]
[361871955,1747859397419,430.0,0.00022311,2]
[361871956,1747859398243,430.0,0.0002231,2]
[361871957,1747859398466,438.56,0.00021917,2]
[361871958,1747859398621,430.0,0.00022311,2]
[361871959,1747859398736,438.56,0.00022191,2]
[361871960,1747859398883,430.0,0.00022585,2]
[361871961,1747859399034,438.56,0.00022465,2]
[361871962,1747859399288,438.56,0.00022739,2]
[361871964,1747859399535,438.56,0.00023013,2]
[361871966,1747859399710,430.0,0.00021917,2]
[361871967,1747859399968,430.0,0.00022191,2]
[361871968,1747859400089,430.0,0.0002231,2]
[361871969,1747859400218,430.0,0.00022465,2]
[361871970,1747859400475,430.0,0.00022739,2]
[361871971,1747859400720,430.0,0.00023013,2]
[361871972,1747859400795,430.0,0.00022311,2]
[361871973,1747859401031,474.86360552,0.00022585,2]
[361871974,1747859402532,430.0,0.0002231,2]
[361871975,1747859403522,410.54513291,0.00022373,2]
[361871976,1747859403551,500.0,0.00022373,2]
[361871977,1747859403579,253.51238828,0.00022373,2]
[361871978,1747859403605,500.0,0.00022373,2]
[361871979,1747859404382,430.0,0.00022311,2]
[361871980,1747859404633,430.0,0.00022585,2]
[361871981,1747859407482,151.0,0.00023133,7]
[361871985,1747859410223,430.0,0.00021917,2]
[361871986,1747859410482,430.0,0.00022191,2]
[361871987,1747859410863,430.0,0.00022465,2]
[361871988,1747859411007,430.0,0.00022739,2]
[361871989,1747859411702,304.59,0.00023013,2]
[361871990,1747859412687,430.0,0.0002231,2]
[361871991,1747859412976,430.0,0.00022584,2]
[361871992,1747859413228,430.0,0.00022858,2]
[361871993,1747859413516,430.0,0.00023132,2]
[361871994,1747859413730,151.0,0.00023133,7]
[361871995,1747859413873,430.0,0.00022311,2]
[361871996,1747859414105,430.0,0.00022585,2]
[361871997,1747859416291,430.0,0.00022311,2]
[361871998,1747859417269,430.0,0.0002231,2]
[361871999,1747859417384,245.14008825,0.00021917,2]
[361872000,1747859418315,471.63,0.0002231,2]
[361872001,1747859425781,430.0,0.00021917,2]
[361872002,1747859426071,151.0,0.00023103,7]
[361872003,1747859426096,430.0,0.00022191,2]
[361872004,1747859426330,550.92,0.00022465,2]
[361872006,1747859427476,430.0,0.00022311,2]
[361872007,1747859427698,197.29933521,0.00022585,2]
[361872008,1747859429883,151.0,0.00023103,7]
[361872009,1747859430056,430.0,0.00021917,2]
[361872010,1747859430686,430.0,0.00022191,2]
[361872011,1747859430848,430.0,0.00021917,2]
[361872012,1747859431085,430.0,0.00022465,2]
[361872013,1747859431113,430.0,0.00022191,2]
[361872014,1747859431335,430.0,0.00022465,2]
[361872015,1747859431360,430.0,0.0002231,2]
[361872016,1747859431397,430.0,0.00022739,2]
[361872017,1747859431566,430.0,0.00022739,2]
[361872018,1747859431797,430.0,0.00023013,2]
[361872019,1747859432013,430.0,0.00023013,2]
[361872022,1747859432080,430.0,0.00022311,2]
[361872045,1747859432401,430.0,0.00022585,2]
[361872057,1747859432643,-536.27643365,0.00023252,2]
[361872059,1747859432653,-190.48,0.0002326,120]
[361872061,1747859432663,-150.5,0.0002327,120]
[361872063,1747859432673,-150.5,0.0002328,120]
[361872065,1747859432683,-300.0,0.00023286,2]
[361872067,1747859432693,-1200.0,0.00023286,2]
[361872069,1747859432703,-430.0,0.00023287,2]
[361872071,1747859432712,-567.11,0.00023287,2]
[361872073,1747859432721,-536.01,0.00023287,2]
[361872075,1747859432731,-430.0,0.00023287,2]
[361872077,1747859432741,-430.0,0.00023287,2]
[361872079,1747859432750,-430.0,0.00023287,2]
[361872081,1747859432760,-151.0,0.00023287,7]
[361872083,1747859432769,-430.0,0.00023287,2]
[361872085,1747859432778,-151.0,0.00023287,7]
[361872087,1747859432787,-430.0,0.00023287,2]
[361872089,1747859432797,-430.0,0.00023287,2]
[361872091,1747859432807,-438.56,0.00023287,2]
[361872093,1747859432816,-430.0,0.00023287,2]
[361872095,1747859432827,-6039.6,0.00023287,2]
[361872097,1747859432836,-430.0,0.00023287,2]
[361872099,1747859432846,-430.0,0.00023287,2]
[361872101,1747859432856,-2102.7778143,0.00023314,9]
[361872103,1747859432866,-500.0,0.00023376,2]
[361872105,1747859432875,-500.0,0.00023376,2]
[361872107,1747859432885,-430.0,0.00023377,2]
[361872109,1747859432895,-161.79,0.00023377,2]
[361872111,1747859432905,-430.0,0.00023377,2]
[361872113,1747859432915,-430.0,0.00023377,2]
[361872115,1747859432925,-430.0,0.00023377,2]
[361872117,1747859432934,-430.0,0.00023377,2]
[361872119,1747859432944,-435.52434879,0.00023377,2]
[361872121,1747859432954,-430.0,0.00023377,2]
[361872123,1747859432964,-430.0,0.00023377,2]
[361872125,1747859432973,-336.6361336,0.00023377,2]
[361872127,1747859432982,-345.4640596,0.00023377,2]
[361872129,1747859432992,-430.0,0.00023377,2]
[361872131,1747859433001,-430.0,0.00023377,2]
[361872133,1747859433011,-434.42318492,0.00023377,2]
[361872135,1747859433021,-432.22,0.00023377,2]
[361872137,1747859433030,-430.0,0.00023377,2]
[361872139,1747859433040,-430.0,0.00023377,2]
[361872141,1747859433049,-430.0,0.00023377,2]
[361872143,1747859433059,-430.0,0.00023377,2]
[361872145,1747859433068,-430.0,0.00023377,2]
[361872147,1747859433078,-374.484381,0.00023377,2]
[361872149,1747859433088,-430.0,0.00023377,2]
[361872150,1747859433098,-1351.71,0.00023377,2]
[361872151,1747859433107,-430.0,0.00023377,2]
[361872152,1747859433117,-430.0,0.00023377,2]
[361872153,1747859433128,-430.0,0.00023377,2]
[361872155,1747859433138,-430.0,0.00023377,2]
[361872156,1747859433147,-430.0,0.00023377,2]
[361872158,1747859433156,-430.0,0.00023377,2]
[361872160,1747859433166,-431.40154279,0.00023377,2]
[361872161,1747859433176,-430.0,0.00023377,2]
[361872162,1747859433186,-435.88732154,0.00023377,2]
[361872163,1747859433196,-431.11679343,0.00023377,2]
[361872164,1747859433206,-430.0,0.00023377,2]
[361872165,1747859433216,-430.0,0.00023377,2]
[361872167,1747859433225,-430.0,0.00023377,2]
[361872169,1747859433235,-430.0,0.00023377,2]
[361872170,1747859433245,-430.0,0.00023377,2]
[361872171,1747859433257,-430.0,0.00023377,2]
[361872172,1747859433267,-430.0,0.00023377,2]
[361872173,1747859433277,-430.0,0.00023377,2]
[361872174,1747859433287,-340.0,0.00023377,2]
[361872175,1747859433296,-474.46591987,0.00023377,2]
[361872176,1747859433306,-430.0,0.00023377,2]
[361872177,1747859433315,-343.64927178,0.00023377,2]
[361872178,1747859433324,-430.0,0.00023377,2]
[361872179,1747859433334,-430.0,0.00023377,2]
[361872180,1747859433344,-300.0,0.00023377,2]
[361872181,1747859433354,-430.0,0.00023377,2]
[361872182,1747859433364,-430.0,0.00023377,2]
[361872183,1747859433374,-430.0,0.00023377,2]
[361872184,1747859433383,-430.0,0.00023377,2]
[361872185,1747859433395,-430.0,0.00023377,2]
[361872186,1747859433405,-370.0,0.00023377,2]
[361872187,1747859433415,-430.0,0.00023377,2]
[361872188,1747859433424,-388.08404812,0.00023377,2]
[361872189,1747859433435,-430.0,0.00023377,2]
[361872190,1747859433445,-430.0,0.00023377,2]
[361872191,1747859433455,-320.0,0.00023377,2]
[361872192,1747859433465,-430.0,0.00023377,2]
[361872193,1747859433475,-382.17911374,0.00023377,2]
[361872194,1747859433486,-430.0,0.00023377,2]
[361872195,1747859433499,-370.0,0.00023377,2]
[361872196,1747859433509,-430.0,0.00023377,2]
[361872197,1747859433519,-430.0,0.00023377,2]
[361872198,1747859433530,-430.0,0.00023377,2]
[361872199,1747859433541,-430.0,0.00023377,2]
[361872200,1747859433692,-430.0,0.00023377,2]
[361872201,1747859433704,-430.0,0.00023377,2]
[361872202,1747859433714,-430.0,0.00023377,2]
[361872203,1747859433724,-370.0,0.00023377,2]
[361872204,1747859433733,-430.0,0.00023378,2]
[361872205,1747859433742,-406.99774531,0.00023378,2]
[361872206,1747859433752,-430.0,0.00023378,2]
[361872207,1747859433762,-150.58430178,0.00023378,2]
[361872208,1747859433772,-430.0,0.00023378,2]
[361872209,1747859433782,-430.0,0.00023378,2]
[361872210,1747859433792,-306.8816199,0.00023378,2]
[361872211,1747859433802,-409.15984828,0.00023378,2]
[361872212,1747859433812,-467.04301578,0.00023378,2]
[361872213,1747859433822,-430.0,0.00023378,2]
[361872214,1747859433832,-430.0,0.00023378,2]
[361872215,1747859433842,-465.04,0.00023378,2]
[361872216,1747859433851,-320.0,0.00023378,2]
[361872217,1747859433862,-497.16,0.00023406,2]
[361872218,1747859433872,-430.0,0.00023406,2]
[361872219,1747859433883,-155.82,0.00023406,2]
[361872220,1747859433893,-430.0,0.00023406,2]
[361872221,1747859433902,-430.0,0.00023406,2]
[361872222,1747859433912,-505.6,0.00023406,2]
[361872223,1747859433921,-430.0,0.00023406,2]
[361872224,1747859433931,-430.0,0.00023406,2]
[361872225,1747859433941,-430.0,0.00023406,2]
[361872226,1747859433951,-430.0,0.00023406,2]
[361872227,1747859433961,-430.0,0.00023407,2]
[361872228,1747859433970,-371.77,0.00023407,2]
[361872229,1747859433980,-430.0,0.00023407,2]
[361872230,1747859433989,-430.0,0.00023407,2]
[361872231,1747859433998,-473.4,0.00023407,2]
[361872232,1747859434008,-430.0,0.00023407,2]
[361872233,1747859434018,-430.0,0.00023407,2]
[361872234,1747859434028,-915.25,0.00023407,2]
[361872235,1747859434038,-430.0,0.00023407,2]
[361872236,1747859434048,-430.0,0.00023409,2]
[361872237,1747859434057,-534.95,0.00023409,2]
[361872238,1747859434067,-430.0,0.00023409,2]
[361872239,1747859434078,-430.0,0.00023409,2]
[361872240,1747859434087,-430.0,0.00023409,2]
[361872241,1747859434097,-430.0,0.00023409,2]
[361872242,1747859434108,-568.22,0.00023409,2]
[361872243,1747859434117,-430.0,0.00023409,2]
[361872244,1747859434128,-430.0,0.00023409,2]
[361872245,1747859434138,-151.72,0.00023409,2]
[361872246,1747859434148,-430.0,0.00023416,2]
[361872247,1747859434157,-430.0,0.00023416,2]
[361872248,1747859434167,-435.48034986,0.00023416,2]
[361872249,1747859434176,-403.91097545,0.00023416,2]
[361872250,1747859434186,-430.0,0.00023416,2]
[361872251,1747859434195,-430.0,0.00023416,2]
[361872252,1747859434205,-431.06022696,0.00023416,2]
[361872253,1747859434215,-435.27183413,0.00023416,2]
[361872254,1747859434225,-151.0,0.00023416,7]
[361872255,1747859434235,-294.614831,0.00023416,7]
[361872256,1747859434245,-152.251538,0.00023416,7]
[361872257,1747859434255,-191.31925,0.00023416,7]
[361872258,1747859434265,-191.31925,0.00023416,7]
[361872259,1747859434275,-151.0,0.00023416,7]
[361872260,1747859434285,-153.010939,0.00023416,7]
[361872261,1747859434295,-153.010939,0.00023416,7]
[361872262,1747859434304,-1111.91658,0.0002345,7]
[361872263,1747859434314,-1111.91658,0.0002345,7]
[361872264,1747859434323,-403.786189,0.0002345,7]
[361872265,1747859434334,-403.786189,0.0002345,7]
[361872266,1747859434354,-151.0,0.0002345,7]
[361872267,1747859434367,-151.0,0.0002345,7]
[361872268,1747859434379,-1000.0,0.0002345,2]
[361872269,1747859434389,-223.35908659,0.0002345,2]
[361872270,1747859434399,-1000.0,0.00023473,2]
[361872271,1747859434410,-671.21612626,0.00023473,2]
[361872272,1747859434420,-151.253534,0.00023473,7]
[361872273,1747859434430,-151.0,0.00023473,7]
[361872274,1747859434441,-151.0,0.00023473,7]
[361872275,1747859434452,-151.0,0.00023473,7]
[361872276,1747859434463,-151.0,0.00023473,7]
[361872277,1747859434474,-152.440132,0.00023473,7]
[361872278,1747859434485,-1696.439124,0.00023473,7]
[361872279,1747859434499,-1696.439124,0.00023473,7]
[361872280,1747859434509,-2102.7778143,0.00023486,9]
[361872281,1747859434520,-500.0,0.00023517,2]
[361872282,1747859434531,-500.0,0.00023517,2]
[361872283,1747859434543,-430.0,0.00023518,2]
[361872284,1747859434554,-500.0,0.00023549,2]
[361872285,1747859434564,-500.0,0.00023549,2]
[361872286,1747859434574,-500.0,0.0002355,2]
[361872287,1747859434584,-430.0,0.00023561,2]
[361872288,1747859434595,-567.11,0.00023561,2]
[361872289,1747859434605,-536.01,0.00023561,2]
[361872290,1747859434616,-430.0,0.00023561,2]
[361872291,1747859434625,-430.0,0.00023561,2]
[361872292,1747859434635,-430.0,0.00023561,2]
[361872293,1747859434645,-430.0,0.00023561,2]
[361872294,1747859434655,-430.0,0.00023561,2]
[361872295,1747859434666,-430.0,0.00023561,2]
[361872296,1747859434676,-438.56,0.00023561,2]
[361872297,1747859434687,-430.0,0.00023561,2]
[361872298,1747859434697,-430.0,0.00023561,2]
[361872299,1747859434707,-430.0,0.00023561,2]
[361872300,1747859434717,-500.83744052,0.00023581,2]
[361872301,1747859434727,-1000.0,0.00023598,2]
[361872302,1747859434737,-171.77017256,0.00023617,5]
[361872303,1747859434747,-390.0,0.00023651,2]
[361872304,1747859434759,-369.03,0.00023651,2]
[361872305,1747859434769,-430.0,0.00023651,2]
[361872306,1747859434779,-430.0,0.00023651,2]
[361872307,1747859434789,-430.0,0.00023651,2]
[361872308,1747859434799,-440.00139921,0.00023651,2]
[361872309,1747859434809,-1351.71,0.00023651,2]
[361872310,1747859434819,-430.0,0.00023651,2]
[361872311,1747859434830,-436.44515137,0.00023651,2]
[361872312,1747859434839,-430.0,0.00023651,2]
[361872313,1747859434849,-430.0,0.00023651,2]
[361872314,1747859434861,-430.0,0.00023651,2]
[361872315,1747859434871,-456.00127569,0.00023651,2]
[361872316,1747859434880,-430.0,0.00023651,2]
[361872317,1747859434891,-216.82332858,0.00023651,2]
[361872318,1747859434900,-433.43119107,0.00023651,2]
[361872319,1747859434910,-436.83759375,0.00023651,2]
[361872320,1747859434921,-300.0,0.00023651,2]
[361872321,1747859434932,-152.49781562,0.00023651,2]
[361872322,1747859434942,-398.58420164,0.00023651,2]
[361872323,1747859434952,-374.59729179,0.00023651,2]
[361872324,1747859434968,-323.47164634,0.00023651,2]
[361872325,1747859434978,-430.0,0.00023651,2]
[361872326,1747859434988,-320.0,0.00023651,2]
[361872327,1747859434998,-430.0,0.00023651,2]
[361872328,1747859435007,-425.0,0.00023651,2]
[361872329,1747859435017,-430.0,0.00023651,2]
[361872330,1747859435026,-430.0,0.00023651,2]
[361872331,1747859435037,-427.77189891,0.00023651,2]
[361872332,1747859435048,-327.65218454,0.00023652,2]
[361872333,1747859435057,-430.0,0.00023652,2]
[361872334,1747859435067,-430.0,0.00023652,2]
[361872335,1747859435077,-430.0,0.00023652,2]
[361872336,1747859435086,-430.0,0.00023652,2]
[361872337,1747859435096,-246.08185958,0.00023652,2]
[361872338,1747859435107,-151.0,0.00023652,7]
[361872339,1747859435117,-2102.7778143,0.00023659,9]
[361872340,1747859435126,-273.86,0.0002368,2]
[361872341,1747859435136,-169.431847,0.0002368,7]
[361872342,1747859435146,-328.18,0.0002368,2]
[361872343,1747859435156,-430.0,0.0002368,2]
[361872344,1747859435166,-430.0,0.0002368,2]
[361872345,1747859435175,-295.06,0.0002368,2]
[361872346,1747859435185,-448.55795272,0.0002368,2]
[361872347,1747859435195,-430.0,0.0002368,2]
[361872348,1747859435205,-430.0,0.00023681,2]
[361872349,1747859435214,-359.14,0.00023681,2]
[361872350,1747859435223,-430.0,0.00023681,2]
[361872351,1747859435233,-473.4,0.00023681,2]
[361872352,1747859435243,-430.0,0.00023681,2]
[361872353,1747859435252,-430.0,0.00023681,2]
[361872354,1747859435263,-915.25,0.00023681,2]
[361872355,1747859435272,-430.0,0.00023681,2]
[361872356,1747859435281,-430.0,0.00023683,2]
[361872357,1747859435291,-534.95,0.00023683,2]
[361872358,1747859435301,-430.0,0.00023683,2]
[361872359,1747859435310,-430.0,0.00023683,2]
[361872360,1747859435320,-430.0,0.00023683,2]
[361872361,1747859435329,-430.0,0.00023683,2]
[361872362,1747859435339,-430.0,0.00023683,2]
[361872363,1747859435348,-430.0,0.00023683,2]
[361872364,1747859435358,-151.0,0.00023683,7]
[361872365,1747859435367,-430.0,0.0002369,2]
[361872366,1747859435377,-554.05,0.0002369,2]
[361872367,1747859435386,-500.0,0.00023726,2]
[361872368,1747859435395,-500.0,0.00023726,2]
[361872369,1747859435405,-500.0,0.00023727,2]
[361872370,1747859435414,-500.0,0.00023784,2]
[361872371,1747859435424,-500.0,0.0002383,2]
[361872372,1747859435433,-500.0,0.0002383,2]
[361872373,1747859435442,-2102.7778143,0.00023831,10]
[361872374,1747859435452,-430.0,0.00023835,2]
[361872375,1747859435461,-567.11,0.00023835,2]
[361872376,1747859435471,-536.01,0.00023835,2]
[361872377,1747859435481,-430.0,0.00023835,2]
[361872378,1747859435492,-169.69,0.00023835,2]
[361872379,1747859435501,-430.0,0.00023835,2]
[361872380,1747859435511,-504.71,0.00023835,2]
[361872381,1747859435521,-430.0,0.00023835,2]
[361872382,1747859435531,-430.0,0.00023835,2]
[361872383,1747859435540,-438.56,0.00023835,2]
[361872384,1747859435550,-430.0,0.00023835,2]
[361872385,1747859435560,-430.0,0.00023835,2]
[361872386,1747859435570,-151.0,0.00023849,2]
[361872387,1747859435582,-151.0,0.00023849,7]
[361872388,1747859435591,-151.0,0.00023849,2]
[361872389,1747859435601,-151.0,0.00023849,2]
[361872390,1747859435611,-434.693514,0.00023849,7]
[361872391,1747859435620,-902.010721,0.00023849,7]
[361872392,1747859435630,-434.693514,0.00023849,7]
[361872393,1747859435639,-902.010721,0.00023849,7]
[361872394,1747859435649,-388.0,0.0002387,120]
[361872395,1747859435659,-151.0,0.00023876,2]
[361872396,1747859435669,-151.0,0.00023876,2]
[361872397,1747859435679,-388.0,0.0002388,120]
[361872398,1747859435688,-775.59933339,0.0002388,2]
[361872399,1747859435706,-725.57469292,0.0002388,2]
[361872400,1747859435716,-388.0,0.0002389,120]
[361872401,1747859435726,-481.05345354,0.000239,2]
[361872402,1747859435735,-458.19,0.00023925,2]
[361872403,1747859435745,-430.0,0.00023925,2]
[361872404,1747859435754,-430.0,0.00023925,2]
[361872405,1747859435764,-1351.71,0.00023925,2]
[361872406,1747859435773,-170.00000007,0.00023925,2]
[361872407,1747859435782,-430.0,0.00023925,2]
[361872408,1747859435793,-437.63254008,0.00023925,2]
[361872409,1747859435802,-430.0,0.00023925,2]
[361872410,1747859435812,-409.94679946,0.00023925,2]
[361872411,1747859435821,-438.1340368,0.00023925,2]
[361872412,1747859435831,-525.09977558,0.00023925,2]
[361872413,1747859435840,-422.62566989,0.00023926,2]
[361872414,1747859435850,-546.47573796,0.00023926,2]
[361872415,1747859435860,-437.91108308,0.00023926,2]
[361872416,1747859435870,-539.69,0.00023954,2]
[361872417,1747859435879,-430.0,0.00023954,2]
[361872418,1747859435889,-430.0,0.00023954,2]
[361872419,1747859435898,-430.0,0.00023955,2]
[361872420,1747859435908,-430.0,0.00023955,2]
[361872421,1747859435918,-473.4,0.00023955,2]
[361872422,1747859435927,-430.0,0.00023955,2]
[361872423,1747859435937,-430.0,0.00023955,2]
[361872424,1747859435947,-915.25,0.00023955,2]
[361872425,1747859435956,-430.0,0.00023955,2]
[361872426,1747859435966,-430.0,0.00023957,2]